bitfinex-derivatives/quotes_BTCF0:USTF0_20241104
["timestamp","ask_amount","ask_price","bid_price","bid_amount"]
[1730685872687,0.49289305,69065.0,69064.0,0.015]
[1730685872891,0.42046505,69065.0,69064.0,0.015]
[1730685873087,0.42046505,69065.0,69064.0,0.15423024]
[1730685873088,0.002,69065.0,69064.0,0.15423024]
[1730685873290,0.072417,69076.0,69075.0,0.072416]
[1730685873595,0.05766505,69076.0,69069.0,0.3608]
[1730685873786,0.07241,69083.0,69082.0,0.07241]
[1730685874194,0.13007505,69083.0,69082.0,0.07241]
[1730685875293,0.13607505,69083.0,69082.0,0.07341]
[1730685875600,0.14107505,69083.0,69082.0,0.07341]
[1730685875805,0.14107505,69083.0,69082.0,0.43421]
[1730685876099,0.14107505,69083.0,69082.0,0.18377338]
[1730685876100,0.06866505,69083.0,69082.0,0.18377338]
[1730685876302,0.06366505,69083.0,69082.0,0.18377338]
[1730685876503,0.13607505,69083.0,69082.0,0.18477338]
[1730685876798,0.09259483,69083.0,69082.0,0.18477338]
[1730685877097,0.08659483,69083.0,69082.0,0.18377338]
[1730685877601,0.08659483,69083.0,69082.0,0.26992837]
[1730685877803,0.08659483,69083.0,69082.0,0.26892837]
[1730685878000,0.08659483,69083.0,69082.0,0.27192837]
[1730685878302,0.08659483,69083.0,69082.0,0.2719166]
[1730685879299,0.08659483,69083.0,69082.0,0.18577338]
[1730685879598,0.08659483,69083.0,69082.0,0.2719166]
[1730685879802,0.08659483,69083.0,69082.0,0.18577338]
[1730685880003,0.08659483,69083.0,69082.0,0.18527279]
[1730685880202,0.08659483,69083.0,69082.0,0.27141601]
[1730685880599,0.08659483,69083.0,69082.0,0.18527279]
[1730685882201,0.08659483,69083.0,69082.0,0.11286279]
[1730685883296,0.072393,69099.0,69095.0,0.072395]
[1730685883603,0.3608,69107.0,69096.0,0.072395]
[1730685883906,0.3608,69107.0,69101.0,0.05733443]
[1730685883907,0.072389,69102.0,69101.0,0.05733443]
[1730685884113,0.10787295,69102.0,69088.0,0.3608]
[1730685884402,0.014,69099.0,69095.0,0.001]
[1730685884702,0.072395,69096.0,69095.0,0.002]
[1730685884900,0.18026736,69096.0,69095.0,0.002]
[1730685885103,0.18026736,69096.0,69095.0,0.001]
[1730685885404,0.10787236,69096.0,69083.0,0.0725]
[1730685885701,0.0724,69091.0,69088.0,0.073403]
[1730685885902,0.10787236,69090.0,69088.0,0.073403]
[1730685886101,0.10787236,69089.0,69088.0,0.073403]
[1730685886305,0.18027436,69089.0,69088.0,0.001]
[1730685887910,0.18027436,69089.0,69084.0,0.072408]
[1730685887911,0.10787236,69089.0,69084.0,0.072408]
[1730685888207,0.072409,69083.0,69081.0,0.07241]
[1730685888410,0.10787236,69082.0,69081.0,0.07241]
[1730685889408,0.10787236,69082.0,69081.0,0.07441]
[1730685890498,0.10787236,69082.0,69081.0,0.07541]
[1730685890808,0.10787236,69082.0,69081.0,0.07341]
[1730685891002,0.072409,69083.0,69081.0,0.004]
[1730685891204,0.072409,69083.0,69082.0,0.07241]
[1730685893398,0.03475226,69092.0,69084.0,0.072408]
[1730685893603,0.0359,69095.0,69084.0,0.072408]
[1730685893809,0.072407,69085.0,69084.0,0.072408]
[1730685894612,0.072407,69085.0,69084.0,0.073408]
[1730685894813,0.072407,69085.0,69084.0,0.074408]
[1730685895216,0.072407,69085.0,69084.0,0.073408]
[1730685895811,0.072407,69085.0,69084.0,0.072408]
[1730685895812,0.073407,69085.0,69084.0,0.072408]
[1730685897113,0.001,69085.0,69084.0,0.072408]
[1730685897309,0.001,69085.0,69084.0,0.21163824]
[1730685899306,0.001,69085.0,69084.0,0.64587824]
[1730685900007,0.001,69085.0,69084.0,0.86329493]
[1730685900212,0.001,69085.0,69084.0,0.93889493]
[1730685900403,0.06443138,69085.0,69084.0,0.97346693]
[1730685900607,0.06443138,69085.0,69084.0,1.98346693]
[1730685900907,0.06442935,69085.0,69084.0,1.98346693]
[1730685901510,0.06442723,69085.0,69084.0,1.98346693]
[1730685902206,0.14431361,69099.0,69098.0,0.072393]
[1730685902414,0.18875621,69099.0,69098.0,0.21162324]
[1730685902620,0.0444426,69099.0,69098.0,0.21162324]
[1730685903815,0.0444426,69099.0,69098.0,0.21362324]
[1730685903816,0.0724426,69099.0,69098.0,0.21362324]
[1730685904817,0.21675621,69099.0,69098.0,0.21362324]
[1730685905202,0.0724426,69099.0,69098.0,0.21362324]
[1730685906116,0.028,69099.0,69098.0,0.21362324]
[1730685908427,0.02232723,69099.0,69098.0,0.30496043]
[1730685908607,0.02232723,69099.0,69098.0,0.68172191]
[1730685909214,0.02232723,69099.0,69098.0,0.75752191]
[1730685909718,0.072381,69111.0,69110.0,0.07238]
[1730685910220,0.147575,69115.0,69114.0,0.072376]
[1730685910424,0.07237,69121.0,69120.0,0.07237]
[1730685910624,0.3608,69123.0,69122.0,0.072368]
[1730685911808,0.0386,69124.0,69123.0,0.072367]
[1730685913213,0.0526,69124.0,69123.0,0.073367]
[1730685913518,0.014,69124.0,69123.0,0.073367]
[1730685913719,0.023,69124.0,69123.0,0.074367]
[1730685917230,0.009,69124.0,69123.0,0.073367]
[1730685917428,0.009,69124.0,69123.0,0.074367]
[1730685917429,0.014,69124.0,69123.0,0.074367]
[1730685919118,0.001,69124.0,69122.0,0.0354834]
[1730685919318,0.001,69124.0,69123.0,0.072367]
[1730685919730,0.001,69124.0,69123.0,0.074367]
[1730685919927,0.072361,69129.0,69126.0,0.072363]
[1730685920124,0.072363,69127.0,69126.0,0.072363]
[1730685920820,0.4005,69131.0,69126.0,0.072363]
[1730685921023,0.072362,69128.0,69126.0,0.072363]
[1730685921224,0.10782838,69127.0,69126.0,0.072363]
[1730685922020,0.10782838,69127.0,69126.0,0.21159324]
[1730685922224,0.17175675,69127.0,69126.0,0.21159324]
[1730685922418,0.10782838,69127.0,69126.0,0.21159324]
[1730685922626,0.004,69129.0,69128.0,0.072362]
[1730685922627,0.16274498,69129.0,69128.0,0.072362]
[1730685922928,0.18700829,69151.0,69126.0,0.68467024]
[1730685922929,0.07713989,69133.0,69132.0,0.072357]
[1730685923123,0.22420829,69151.0,69142.0,0.072347]
[1730685923322,0.22420829,69151.0,69142.0,0.21157724]
[1730685923634,0.0743,69151.0,69150.0,0.072339]
[1730685923929,0.0743,69151.0,69150.0,0.03113844]
[1730685923930,0.1261987,69151.0,69150.0,0.03113844]
[1730685924145,0.23334687,69151.0,69150.0,0.03113844]
[1730685924631,0.16100887,69151.0,69150.0,0.03113844]
[1730685924826,0.08670887,69151.0,69150.0,0.03113844]
[1730685925024,0.0518987,69151.0,69148.0,0.13923024]
[1730685925233,0.05189309,69156.0,69155.0,0.072333]
[1730685925414,0.05189309,69162.0,69151.0,0.3608]
[1730685925618,0.072333,69156.0,69153.0,0.072335]
[1730685925821,0.36216,69163.0,69159.0,0.072329]
[1730685925822,0.110927,69161.0,69159.0,0.072329]
[1730685926125,0.0386,69161.0,69157.0,0.13923024]
[1730685926331,0.07233,69158.0,69157.0,0.13923024]
[1730685926726,0.0386,69161.0,69157.0,0.21156024]
[1730685927423,0.124928,69161.0,69159.0,0.001]
[1730685927623,0.11673513,69160.0,69159.0,0.001]
[1730685928628,0.11673514,69160.0,69159.0,0.001]
[1730685928824,0.07233,69158.0,69157.0,0.002]
[1730685929124,0.07233,69158.0,69157.0,0.001]
[1730685929326,0.072335,69153.0,69151.0,0.3608]
[1730685929528,0.072337,69152.0,69151.0,0.3608]
[1730685930131,0.072346,69143.0,69142.0,0.072347]
[1730685930724,0.3608,69150.0,69139.0,0.00216917]
[1730685931027,0.072349,69140.0,69139.0,0.00216917]
[1730685931224,0.072349,69140.0,69139.0,0.03652387]
[1730685931432,0.072349,69140.0,69139.0,0.00216917]
[1730685931928,0.072349,69140.0,69134.0,0.3608]
[1730685932124,0.072353,69137.0,69134.0,0.3608]
[1730685932325,0.072353,69137.0,69134.0,0.39516068]
[1730685933123,0.3608,69139.0,69134.0,0.004]
[1730685933323,0.21158424,69135.0,69134.0,0.004]
[1730685933539,0.13923024,69135.0,69118.0,0.47440979]
[1730685933727,0.50003024,69139.0,69122.0,0.13923024]
[1730685933921,0.50003024,69139.0,69127.0,0.072362]
[1730685934122,0.50003024,69139.0,69134.0,0.002]
[1730685934323,0.072354,69135.0,69134.0,0.002]
[1730685934527,0.43315,69139.0,69137.0,0.072352]
[1730685934729,0.43315,69139.0,69138.0,0.072351]
[1730685935331,0.072351,69138.0,69134.0,0.074354]
[1730685935836,0.004,69139.0,69138.0,0.072351]
[1730685936041,0.072339,69150.0,69144.0,0.072345]
[1730685936933,0.07327716,69157.0,69144.0,0.072345]
[1730685936934,0.13923024,69155.0,69144.0,0.072345]
[1730685937738,0.072349,69140.0,69139.0,1.0108]
[1730685937928,0.50003024,69145.0,69133.0,0.072356]
[1730685937929,0.072353,69137.0,69133.0,0.072356]
[1730685938126,0.072353,69137.0,69129.0,0.3608]
[1730685938127,0.072359,69131.0,69130.0,0.10730595]
[1730685938327,0.072354,69136.0,69132.0,0.072357]
[1730685938529,0.072355,69135.0,69132.0,0.072357]
[1730685939334,0.0386,69140.0,69135.0,0.072354]
[1730685939530,0.072351,69138.0,69135.0,0.072354]
[1730685940533,0.001,69140.0,69139.0,0.07235]
[1730685941237,0.002,69140.0,69139.0,0.07235]
[1730685942337,0.072349,69141.0,69139.0,0.07235]
[1730685942541,0.072349,69141.0,69139.0,0.07335]
[1730685942739,0.072349,69140.0,69139.0,0.003]
[1730685943440,0.072349,69140.0,69139.0,0.002]
[1730685943840,0.05936298,69140.0,69139.0,0.1122783]
[1730685944046,0.0377,69140.0,69139.0,0.1122783]
[1730685944233,0.110049,69140.0,69139.0,0.1112783]
[1730685944542,0.110049,69140.0,69139.0,0.19679272]
[1730685944747,0.110049,69140.0,69139.0,0.1112783]
[1730685945043,0.110049,69140.0,69139.0,0.0515783]
[1730685945044,0.543969,69140.0,69139.0,0.0515783]
[1730685945245,0.110049,69140.0,69139.0,0.12325021]
[1730685945545,0.543969,69140.0,69139.0,0.001]
[1730685945936,0.543969,69140.0,69139.0,0.07267388]
[1730685946242,0.543969,69140.0,69139.0,0.001]
[1730685946243,0.110049,69140.0,69139.0,0.001]
[1730685946438,0.543969,69140.0,69139.0,0.001]
[1730685946640,0.111049,69140.0,69135.0,0.08600933]
[1730685946840,0.072353,69136.0,69135.0,0.08600933]
[1730685947444,0.072354,69135.0,69134.0,0.08600933]
[1730685949349,0.037,69137.0,69129.0,0.07236]
[1730685949545,0.072354,69135.0,69134.0,0.08600575]
[1730685949846,0.072354,69135.0,69134.0,0.09000575]
[1730685950246,0.072354,69135.0,69134.0,0.08900575]
[1730685950451,0.072354,69135.0,69134.0,0.003]
[1730685950642,0.072354,69135.0,69134.0,0.08900575]
[1730685950951,0.072354,69135.0,69134.0,0.09300575]
[1730685951437,0.072354,69135.0,69134.0,0.007]
[1730685956241,0.3608,69136.0,69119.0,0.1114]
[1730685956542,0.3608,69136.0,69126.0,0.072364]
[1730685956543,0.072363,69127.0,69126.0,0.072364]
[1730685956949,0.50003024,69127.0,69118.0,0.00216979]
[1730685957241,0.50003024,69119.0,69105.0,0.0354]
[1730685957449,0.0355,69118.0,69105.0,0.0354]
[1730685957756,0.072377,69114.0,69105.0,0.0354]
[1730685957949,0.072377,69114.0,69113.0,0.072377]
[1730685958846,0.0355,69118.0,69113.0,0.20567581]
[1730685959046,0.0355,69118.0,69116.0,0.08611549]
[1730685959242,0.072373,69117.0,69116.0,0.08611549]
[1730685959552,0.072373,69117.0,69113.0,0.08611549]
[1730685959753,0.073376,69114.0,69113.0,0.08711549]
[1730685960057,0.073376,69114.0,69113.0,0.197432]
[1730685960353,0.072376,69114.0,69113.0,0.11031651]
[1730685960553,0.072376,69114.0,69113.0,0.19643757]
[1730685961344,0.21160624,69114.0,69113.0,0.11031651]
[1730685961746,0.13923024,69114.0,69112.0,0.07177159]
[1730685961941,0.03439751,69118.0,69113.0,0.11132305]
[1730685962149,0.072373,69117.0,69116.0,0.0717892]
[1730685962449,0.072375,69115.0,69113.0,0.0747892]
[1730685962642,0.072376,69114.0,69113.0,0.003]
[1730685962844,0.506456,69114.0,69113.0,0.06043011]
[1730685963047,0.183776,69114.0,69113.0,0.05743011]
[1730685963355,0.617856,69114.0,69113.0,0.009]
[1730685963554,0.617856,69114.0,69113.0,0.05205757]
[1730685963742,0.617856,69114.0,69113.0,0.004]
[1730685963943,0.55248,69114.0,69111.0,0.04305757]
[1730685964154,0.57240824,69112.0,69111.0,0.04305757]
[1730685964349,0.072379,69111.0,69110.0,0.04305757]
[1730685964656,0.07238,69110.0,69109.0,0.04305757]
[1730685965157,0.50646,69110.0,69109.0,0.04305757]
[1730685965643,0.50646,69110.0,69106.0,0.04305757]
[1730685965844,0.21161424,69107.0,69106.0,0.04305757]
[1730685966150,0.072385,69106.0,69105.0,0.04305757]
[1730685966350,0.072386,69105.0,69104.0,0.04305757]
[1730685967051,0.072386,69105.0,69092.0,1.0]
[1730685967052,0.072391,69100.0,69099.0,0.04305757]
[1730685967854,0.3608,69100.0,69097.0,0.04305757]
[1730685968052,0.3608,69100.0,69097.0,0.04302741]
[1730685968253,0.3608,69100.0,69096.0,0.04302741]
[1730685968556,0.3608,69100.0,69092.0,0.04302741]
[1730685968557,0.072398,69093.0,69092.0,0.04302741]
[1730685968755,0.3608,69093.0,69089.0,0.04302741]
[1730685968948,0.21163124,69090.0,69089.0,0.04302741]
[1730685969349,0.21163124,69090.0,69085.0,1.05823011]
[1730685969350,0.072402,69089.0,69088.0,0.04302741]
[1730685969955,0.13923024,69090.0,69087.0,0.04302741]
[1730685970154,0.072404,69088.0,69087.0,0.04302741]
[1730685971045,0.072404,69088.0,69085.0,1.0008]
[1730685971046,0.072406,69086.0,69085.0,0.0008]
[1730685971249,0.57243624,69086.0,69075.0,0.0717892]
[1730685971449,0.072418,69074.0,69073.0,0.04299573]
[1730685971651,0.072418,69074.0,69064.0,1.0717892]
[1730685971652,0.072419,69073.0,69072.0,0.04299573]
[1730685971858,0.13923024,69074.0,69070.0,0.04299573]
[1730685972056,0.13923024,69074.0,69064.0,1.0]
[1730685972057,0.072422,69070.0,69069.0,0.04299573]
[1730685972259,0.13923024,69074.0,69068.0,0.04299573]
[1730685972447,0.072423,69069.0,69068.0,0.04299573]
[1730685973560,0.072426,69067.0,69066.0,0.04299573]
[1730685973749,0.3618,69070.0,69065.0,0.04299573]
[1730685973951,0.072428,69065.0,69064.0,0.00076]
[1730685974146,0.072428,69065.0,69053.0,0.44692106]
[1730685974147,0.02168785,69064.0,69058.0,0.0717892]
[1730685974362,0.13923024,69060.0,69055.0,0.0717892]
[1730685974559,0.13923024,69060.0,69053.0,0.3608]
[1730685974560,0.072439,69055.0,69053.0,0.3608]
[1730685974762,0.072439,69055.0,69053.0,0.3963588]
[1730685974946,0.072439,69055.0,69053.0,0.3608]
[1730685975761,0.001,69055.0,69053.0,0.43824]
[1730685975956,0.07243,69063.0,69053.0,0.3658]
[1730685976156,0.07243,69063.0,69061.0,0.04293188]
[1730685976356,0.07243,69063.0,69062.0,0.04293188]
[1730685976559,0.07243,69063.0,69053.0,0.4515892]
[1730685976757,0.11148,69065.0,69053.0,0.4515892]
[1730685977057,0.072428,69065.0,69063.0,0.04290908]
[1730685977263,0.072426,69067.0,69063.0,0.04290908]
[1730685977453,0.072426,69067.0,69063.0,0.15113808]
[1730685977854,0.11148,69068.0,69065.0,0.072428]
[1730685978054,0.31105987,69070.0,69069.0,0.072423]
[1730685978257,0.31105987,69070.0,69069.0,0.11533208]
[1730685978556,0.13923024,69075.0,69069.0,0.072423]
[1730685978857,0.02892944,69073.0,69071.0,0.04287643]
[1730685979160,0.13923024,69075.0,69064.0,0.038]
[1730685979161,0.13923024,69075.0,69070.0,0.11529843]
[1730685979464,0.13923024,69075.0,69070.0,0.04287643]
[1730685979663,0.13923024,69075.0,69072.0,0.07242]
[1730685980552,0.13923024,69075.0,69071.0,0.04287643]
[1730685981059,0.10298863,69075.0,69071.0,0.04287643]
[1730685981464,0.072418,69074.0,69072.0,0.003]
[1730685981757,0.072418,69074.0,69072.0,0.04587643]
[1730685981965,0.072418,69074.0,69072.0,0.04487643]
[1730685982553,0.072419,69073.0,69072.0,0.004]
[1730685982755,0.072419,69073.0,69072.0,0.007]
[1730685984059,0.073419,69073.0,69072.0,0.05091458]
[1730685984665,0.073419,69073.0,69072.0,0.009]
[1730685987669,0.073419,69073.0,69072.0,0.19117997]
[1730685987872,0.1076141,69073.0,69072.0,0.19117997]
[1730685988172,0.001,69073.0,69072.0,0.11939077]
[1730685988363,0.001,69073.0,69072.0,0.19181077]
[1730685988865,0.001,69073.0,69072.0,0.19180679]
[1730685989258,0.13923024,69074.0,69072.0,0.11938679]
[1730685989465,0.072419,69073.0,69072.0,0.009]
[1730685989664,0.072419,69073.0,69072.0,0.11938714]
[1730685989872,0.13923024,69074.0,69072.0,0.11938714]
[1730685990076,0.13923024,69074.0,69073.0,0.18280614]
[1730685990969,0.13923024,69074.0,69073.0,0.18280612]
[1730685991359,0.00217265,69077.0,69076.0,0.072416]
[1730685991561,0.00217265,69077.0,69076.0,0.18280312]
[1730685991759,0.07458765,69077.0,69076.0,0.11038712]
[1730685993177,0.00217265,69077.0,69076.0,0.11038712]
[1730685993674,0.00217265,69077.0,69076.0,0.11138712]
[1730685993880,0.00217265,69077.0,69076.0,0.18380312]
[1730685994261,0.00217265,69077.0,69076.0,0.26992418]
[1730685994678,0.3608,69078.0,69077.0,0.072415]
[1730685994866,0.3608,69078.0,69077.0,0.31566608]
[1730685995475,0.3608,69078.0,69077.0,0.31570983]
[1730685995867,0.3618,69078.0,69077.0,0.31570983]
[1730685996272,0.3618,69078.0,69077.0,0.31569378]
[1730685996574,0.3618,69078.0,69077.0,0.50771078]
[1730685996876,0.434214,69078.0,69077.0,0.39749578]
[1730685997079,0.434214,69078.0,69077.0,0.24327878]
[1730685998770,0.471814,69078.0,69077.0,0.24327878]
[1730685998975,0.42832376,69078.0,69077.0,0.24327878]
[1730685999276,0.86260376,69078.0,69077.0,0.24338559]
[1730685999471,0.89733696,69078.0,69077.0,0.11038382]
[1730685999673,0.9641532,69078.0,69066.0,0.10095307]
[1730685999875,0.433226,69067.0,69066.0,0.10095307]
[1730686000074,0.072428,69065.0,69064.0,0.10095307]
[1730686000378,0.21165824,69065.0,69064.0,0.28595591]
[1730686000877,0.21165824,69065.0,69064.0,0.38696889]
[1730686001373,0.21165824,69065.0,69064.0,0.28595591]
[1730686001774,0.21265824,69065.0,69064.0,0.29995591]
[1730686001967,0.21365824,69065.0,69064.0,0.30695591]
[1730686003983,0.14123024,69065.0,69064.0,0.30695591]
[1730686004275,0.16291648,69065.0,69064.0,0.30695591]
[1730686004682,0.16291648,69065.0,69064.0,0.30613995]
[1730686005475,0.19782497,69065.0,69064.0,0.30613995]
[1730686006782,0.55862497,69065.0,69064.0,0.15294529]
[1730686010875,0.55862497,69065.0,69064.0,0.021]
[1730686012284,0.55862497,69065.0,69064.0,0.10767627]
[1730686013483,0.55862497,69065.0,69064.0,0.021]
[1730686014688,0.55862497,69065.0,69064.0,0.13141177]
[1730686015182,0.52371648,69065.0,69064.0,0.13141177]
[1730686015781,0.52371648,69065.0,69064.0,0.20360626]
[1730686015985,0.52371648,69065.0,69064.0,0.021]
[1730686016683,0.52371648,69065.0,69050.0,0.3608]
[1730686016684,0.072432,69061.0,69055.0,0.08666128]
[1730686016883,0.50003024,69056.0,69051.0,0.08664694]
[1730686017085,0.13923024,69053.0,69052.0,0.11042567]
[1730686017681,0.13923024,69053.0,69047.0,0.00217216]
[1730686017989,0.3608,69049.0,69048.0,0.10973813]
[1730686018577,0.57247424,69049.0,69048.0,0.10973813]
[1730686020189,0.57347424,69049.0,69048.0,0.11373813]
[1730686020586,0.69147424,69049.0,69048.0,0.11373813]
[1730686020777,0.69047424,69049.0,69048.0,0.10973813]
[1730686020980,0.69147424,69049.0,69048.0,0.11373813]
[1730686021594,0.69147424,69049.0,69048.0,0.004]
[1730686021988,0.69147424,69049.0,69048.0,0.11374809]
[1730686022392,0.72681671,69049.0,69048.0,0.004]
[1730686022787,0.72681671,69049.0,69048.0,0.04731287]
[1730686023299,0.72681671,69049.0,69048.0,0.004]
[1730686025092,0.72681671,69049.0,69041.0,0.04331287]
[1730686025093,1.16129671,69049.0,69041.0,0.04331287]
[1730686025291,0.57248224,69042.0,69041.0,0.04331287]
[1730686025896,0.072453,69041.0,69040.0,0.04331287]
[1730686026196,0.21168324,69041.0,69040.0,0.04331287]
[1730686026490,0.21168324,69041.0,69040.0,0.0432874]
[1730686026991,0.21168324,69041.0,69029.0,0.0387]
[1730686027293,0.21168324,69041.0,69012.0,0.11704]
[1730686027294,0.13923024,69030.0,69022.0,0.00076]
[1730686027590,0.072474,69022.0,69021.0,1.0]
[1730686027795,0.21170424,69022.0,69021.0,1.0]
[1730686028185,0.072476,69019.0,69017.0,0.1104]
[1730686028590,0.072476,69019.0,69018.0,1.0]
[1730686029386,0.073476,69019.0,69018.0,1.0]
[1730686029588,0.001,69019.0,69018.0,1.0]
[1730686030402,0.14023024,69022.0,69018.0,1.0]
[1730686030600,0.001,69019.0,69018.0,1.0]
[1730686030805,0.002,69019.0,69018.0,1.0]
[1730686031297,0.002,69019.0,69018.0,1.072477]
[1730686031491,0.11704,69034.0,69018.0,1.61739041]
[1730686031687,0.13923024,69036.0,69030.0,0.04324131]
[1730686031899,0.13923024,69036.0,69027.0,0.072467]
[1730686031900,0.072461,69033.0,69032.0,0.04324131]
[1730686032092,0.072462,69032.0,69031.0,0.08034131]
[1730686032288,0.93463024,69032.0,69030.0,0.04324131]
[1730686032499,0.072466,69028.0,69027.0,0.04324131]
[1730686032694,0.21169624,69028.0,69027.0,0.04324131]
[1730686033692,0.21169624,69028.0,69027.0,0.04424131]
[1730686034488,0.21269624,69028.0,69027.0,0.04424131]
[1730686034895,0.21269624,69028.0,69027.0,0.001]
[1730686035699,0.24759107,69028.0,69027.0,0.001]
[1730686042406,0.24759107,69028.0,69027.0,0.04424609]
[1730686043199,0.24759107,69028.0,69027.0,0.001]
[1730686043598,0.28279107,69028.0,69027.0,0.001]
[1730686044005,0.71739107,69028.0,69027.0,0.001]
[1730686044302,0.71739107,69028.0,69026.0,0.04324609]
[1730686044303,0.072468,69027.0,69026.0,0.04324609]
[1730686044511,0.072471,69024.0,69023.0,0.05765509]
[1730686044801,0.21170124,69024.0,69023.0,0.05765509]
[1730686045006,0.072479,69016.0,69015.0,0.0751]
[1730686045301,0.13923024,69016.0,69015.0,0.27220495]
[1730686045904,0.21170924,69016.0,69015.0,0.27220495]
[1730686046306,0.21170924,69016.0,69015.0,0.18557399]
[1730686047002,0.21270924,69016.0,69015.0,0.18557399]
[1730686047399,0.21370924,69016.0,69015.0,0.18657399]
[1730686048006,0.21370924,69016.0,69015.0,0.19814568]
[1730686048400,0.21370924,69016.0,69015.0,0.11147399]
[1730686049232,0.21370924,69016.0,69015.0,0.11047399]
[1730686049414,0.21370924,69016.0,69014.0,0.07226974]
[1730686049415,0.28046048,69016.0,69014.0,0.07226974]
[1730686049599,0.072481,69014.0,69013.0,0.07226974]
[1730686049798,0.21171124,69014.0,69013.0,0.18276496]
[1730686050108,0.21171124,69014.0,69013.0,0.07226974]
[1730686050505,0.072482,69013.0,69012.0,0.07226974]
[1730686050706,0.21171224,69013.0,69012.0,0.18276598]
[1730686051408,0.21171224,69013.0,69012.0,0.07226974]
[1730686051611,0.21171224,69013.0,69012.0,0.11049666]
[1730686051809,0.072483,69012.0,69011.0,0.07227321]
[1730686052011,0.072483,69012.0,69011.0,0.11049696]
[1730686052500,0.57251324,69012.0,69011.0,0.07229471]
[1730686052703,0.072495,69001.0,69000.0,0.1]
[1730686052904,0.21172524,69001.0,69000.0,0.1]
[1730686054216,0.21272524,69001.0,69000.0,0.1]
[1730686055011,0.21372524,69001.0,69000.0,0.101]
[1730686056315,0.24809124,69001.0,69000.0,0.101]
[1730686057307,0.17559624,69001.0,68989.0,0.3991]
[1730686057505,0.17559624,69001.0,68990.0,0.1300644]
[1730686057506,0.13923024,68994.0,68990.0,0.1300644]
[1730686057715,0.09569357,68994.0,68991.0,0.1300644]
[1730686057914,0.09569357,68994.0,68992.0,0.1300644]
[1730686058120,0.09569357,68994.0,68989.0,0.3991]
[1730686058304,0.09569357,68994.0,68990.0,0.12955042]
[1730686058613,0.072503,68993.0,68991.0,0.12955042]
[1730686058914,0.09569357,68994.0,68989.0,0.0383]
[1730686058915,0.072506,68990.0,68989.0,0.0383]
[1730686059215,0.072506,68990.0,68987.0,0.00217408]
[1730686059216,0.50139024,68992.0,68987.0,0.00217408]
[1730686059524,0.072508,68988.0,68987.0,0.00217408]
[1730686059821,0.072511,68986.0,68985.0,0.037]
[1730686060112,0.57254124,68986.0,68985.0,0.037]
[1730686060714,0.57254124,68986.0,68976.0,0.0383]
[1730686060715,0.072512,68985.0,68976.0,0.0383]
[1730686060917,0.13923024,68980.0,68977.0,0.16608388]
[1730686061218,0.13923024,68980.0,68977.0,0.0359]
[1730686062813,0.21274724,68980.0,68977.0,0.0359]
[1730686064821,0.21374724,68980.0,68977.0,0.0359]
[1730686065023,0.072518,68979.0,68977.0,0.0359]
[1730686066520,0.074518,68979.0,68977.0,0.0359]
[1730686066721,0.002,68979.0,68977.0,0.0359]
[1730686068315,0.001,68979.0,68977.0,0.0359]
[1730686068514,0.002,68979.0,68977.0,0.0359]
[1730686068915,0.001,68979.0,68977.0,0.0359]
[1730686069120,0.002,68979.0,68977.0,0.0359]
[1730686069321,0.002,68979.0,68974.0,0.433323]
[1730686069322,0.072521,68976.0,68974.0,0.3608]
[1730686069513,0.21175124,68976.0,68975.0,0.10930821]
[1730686069717,0.13923024,68976.0,68967.0,0.1096]
[1730686069913,0.13923024,68969.0,68968.0,0.1094779]
[1730686071728,0.13923024,68969.0,68968.0,0.10957682]
[1730686072226,0.14023024,68969.0,68968.0,0.10957682]
[1730686072416,0.10393763,68969.0,68968.0,0.10957682]
[1730686072611,0.10493763,68969.0,68968.0,0.10957682]
[1730686073018,0.17746563,68969.0,68968.0,0.10957682]
[1730686073831,0.24781709,68969.0,68968.0,0.10957682]
[1730686074321,0.24781709,68969.0,68965.0,0.3608]
[1730686074322,0.07253,68968.0,68965.0,0.3608]
[1730686074521,0.072531,68967.0,68966.0,0.10909011]
[1730686075129,0.17528909,68969.0,68966.0,0.10909011]
[1730686075316,0.17528909,68969.0,68965.0,0.3608]
[1730686075517,0.17428909,68969.0,68966.0,0.10882959]
[1730686075722,0.001,68967.0,68965.0,0.3608]
[1730686075928,0.073531,68967.0,68966.0,0.10882978]
[1730686076228,0.072531,68967.0,68966.0,0.10882978]
[1730686076434,0.001,68968.0,68966.0,0.10882978]
[1730686076631,0.001,68968.0,68965.0,0.433332]
[1730686076816,0.001,68968.0,68967.0,0.072531]
[1730686077018,0.47592,68983.0,68967.0,0.18138882]
[1730686077221,0.548434,68983.0,68981.0,0.05768725]
[1730686077527,0.548434,68983.0,68978.0,1.0]
[1730686077728,0.433314,68983.0,68978.0,1.072519]
[1730686078029,0.548434,68983.0,68978.0,0.072519]
[1730686078621,0.13923024,68980.0,68978.0,0.072519]
[1730686079836,0.13923024,68980.0,68974.0,0.0395]
[1730686080020,0.13923024,68980.0,68975.0,0.18127619]
[1730686080228,0.21274724,68980.0,68976.0,0.10875419]
[1730686080422,0.21274724,68980.0,68977.0,0.10875419]
[1730686080620,0.21274724,68980.0,68978.0,0.10875419]
[1730686080930,0.21274724,68980.0,68979.0,0.10875419]
[1730686080931,0.14023024,68980.0,68979.0,0.10875419]
[1730686081231,0.21374724,68980.0,68979.0,0.10875419]
[1730686081419,0.32886724,68980.0,68978.0,0.001]
[1730686081618,0.21374724,68980.0,68978.0,0.001]
[1730686081920,0.21374724,68980.0,68971.0,0.12300305]
[1730686081921,0.001,68980.0,68979.0,0.5421793]
[1730686082126,0.11512,68987.0,68986.0,0.07251]
[1730686082428,0.25435024,68987.0,68986.0,0.1088613]
[1730686083026,0.13923024,68987.0,68986.0,0.1088613]
[1730686083925,0.11512,68990.0,68986.0,0.1088613]
[1730686084126,0.11512,68990.0,68988.0,0.07228275]
[1730686084834,0.11512,68990.0,68987.0,0.07228275]
[1730686085039,0.11512,68990.0,68980.0,0.0752]
[1730686085040,0.11512,68990.0,68988.0,0.07228275]
[1730686085442,0.11812,68990.0,68989.0,0.07228275]
[1730686085630,0.11912,68990.0,68989.0,0.07228275]
[1730686086334,0.004,68990.0,68989.0,0.10886514]
[1730686086540,0.003,68990.0,68989.0,0.10886514]
[1730686086755,0.004,68990.0,68989.0,0.18137214]